{"text_format":"1","workbook":"xlsx","n_sheets":4,"sheets":["Welcome","TAXO Excel","Token - User guide","Configuration"],"not_rendered":{"charts":0,"images":2,"macros":1,"external_links":0,"defined_names":9,"comments":0,"pivot_tables":0},"unopened":[],"bounds":{"document_bytes":16777216,"sheet_cells":100000,"rows_first":2000,"rows_last":500,"rows_between":2000,"halvings":0,"cell_chars":16384,"cell_head_chars":4096},"cells_cut":0,"cells_raw":0,"read":"whole","date_system":"1900"}

{"sheet":"Welcome","index":0,"n_rows":39,"n_cols":12,"rows_kept":39,"cut":false,"hidden":false,"merged":[[0,1,0,17],[3,2,3,7],[3,11,3,16],[5,11,55,16],[5,2,24,7],[25,2,25,7],[34,2,34,7],[36,2,37,7],[38,2,40,7]]}
[null,"TAXO Excel"]
[]
[]
[null,null,"WELCOME TO THE TAXO EXCEL CALCULATOR!",null,null,null,null,null,null,null,null,"TERMS AND CONDITIONS"]
[]
[null,null,"TAXO is now also available as an Excel spreadsheet to facilitate the calculation of multiple vehicles in one go.\n\nIn order to be able to use this Excel calculator, you need take into account next points:\n\n   • The file contains an Excel macro, and therefore it has the extension “xlsm”. You will need to enable it and trust the author (Febiac VZW) in order to make it work. \n\n   • You need an internet connection in order to run the macro and to get the results.\n\n   • You will need to insert a valid key (Token) in the respective field (sheet \"Token - User guide\") so the excel file can connect to the TAXO API to send and receive information.\n\nImportant note: when you click the \"CALCULATE TAXES\" button, a request will be sent to the TAXO API for every row you configured. In other words, if you configured 10 rows for 10 vehicles, 10 API requests will be sent every time you click the \"CALCULATE TAXES\" button.\n\nIf you would like to receive a test-token or if you are interested in taking a TAXO API subscription, you can contact us using the contact form on the TAXO website:\n\n",null,null,null,null,null,null,null,null,"The Excel file \"febiac_taxo_excel.xlsm\" including the macro (further referred to as the \"File\") is available for download on https://taxo.febiac.be and has been provided for your convenience and general use. By downloading and using the File, you agree to the following terms and conditions:\n\n1. No Warranty or Liability:\n\nThe File is offered on an \"as-is\" basis, and there is no warranty, express or implied, regarding its accuracy, completeness, functionality, or fitness for a particular purpose. The author of the File (\"Febiac VZW\") shall not be held liable for any direct or indirect damages arising from the use or misuse of the File, including but not limited to data loss, system malfunction, or any other issues related to the use of the File or macro.\n\n2. Virus and Security:\n\nThe Author has taken reasonable precautions to ensure the File is free from viruses and other malicious elements. However, it is your responsibility to use updated antivirus software and verify the integrity of the File before use. The Author shall not be liable for any damages resulting from viruses or security breaches that may occur during or after downloading or using the File.\n\n3. Personal Responsibility:\n\nYou acknowledge that you are using the File at your own risk. The Author disclaims any responsibility for the results obtained from the use of the File. You are solely responsible for verifying the accuracy and suitability of the File for your specific purposes.\n\n4. Macro Enablement:\n\nThe File contains a macro that enhances its functionality. To use the File as intended, you must enable macros on your Excel software. Exercise caution when enabling macros from unknown sources, as they can pose security risks. The Author disclaims any liability for any issues that may arise from enabling macros or using the File in macro-enabled mode.\n\n5. Modifications and Updates:\n\nThe Author may update or modify the File from time to time. However, there is no obligation on the Author's part to notify users of such updates or modifications. It is recommended to check the website periodically for any updated versions of the File.\n\n6. Legal Compliance:\n\nYou agree to comply with all applicable laws and regulations when using the File, including copyright and intellectual property rights. You shall not distribute, sell, or modify the File for commercial purposes without explicit written permission from the Author.\n\nBy downloading and using the File, you acknowledge that you have read, understood, and agreed to the terms and conditions stated in this disclaimer. If you do not agree with any part of this disclaimer, you should refrain from using the File.\n\nFor any questions or concerns regarding the File or this disclaimer, please contact us using the contact form on the TAXO website.\n\nLast Updated: 20 July 2023\n\n\n"]
[]
[]
[]
[]
[]
[]
[]
[]
[]
[]
[]
[]
[]
[]
[]
[]
[]
[]
[]
[null,null,"https://dataservices.febiac.be/taxo"]
[]
[null,null,"Powered by:"]
[]
[]
[]
[]
[]
[]
[null,null,"Disclaimer"]
[]
[null,null,"We use reasonable endeavours to ensure that the results are accurate, however, the user is solely responsible for the use of this information. Please carefully read the full disclaimer here:"]
[]
[null,null,"https://dataservices.febiac.be/api/download/taxo-disclaimer"]

{"sheet":"TAXO Excel","index":1,"n_rows":6,"n_cols":84,"rows_kept":6,"cut":false,"hidden":false,"merged":[]}
[null,"Vehicle Type","Vehicle Price (Excl. VAT)","Discount Amount (Excl. VAT)","First Registration Date","Engine Type","Engine Capacity (CC)","Max Net Power (kW)","Fiscal HP","Max Permissible Weight (kg)","CO2 (g/km)","Euronorm","Execution Date","Vehicle Type Formatted","Engine Type Formatted","First Registration Date Formatted","Execution Date Formatted","Result","Vehicle Type","Vehicle Price (Excl. VAT)","Discount Amount (Excl. VAT)","First Registration Date","Engine Type","Engine Capacity (CC)","Max Net Power (kW)","Fiscal HP","Max Permissible Weight (Kg)","CO2 (gr/km)","Euronorm","Execution Date","Tax Deductiblity\nYearly","VAT Deductibility\nMixed Usage","VAT Deductibility\nProfessional usage only","VAT Deductibility\nSpecial purpose","Registration Tax\nBrussels \nLegal entity - Leasing ","Registration Tax\nBrussels \nLegal entity - No leasing ","Registration Tax\nBrussels\nCompany - leasing ","Registration Tax\nBrussels\nCompany - No leasing","Registration Tax\nBrussels\nNatural person with VAT ","Registration Tax\nBrussels\nNatural person without VAT ","Ecomalus\nWallonia\nLegal entity - Leasing","Registration Tax\nWallonia\nLegal entity - Leasing","Ecomalus\nWallonia\nLegal entity - No leasing","Registration Tax\nWallonia\n Legal entity - No leasing","Ecomalus\nWallonia\nCompany - Leasing","Registration Tax\nWallonia\n Company - Leasing","Ecomalus\nWallonia\nCompany - No leasing","Registration Tax\nWallonia\nCompany - No leasing","Ecomalus\nWallonia\nNatural person with VAT","Registration Tax\nWallonia\nNatural person with VAT","Ecomalus\nWallonia\nNatural person without VAT","Registration Tax\nWallonia\nNatural person without VAT","Registration Tax\nFlanders\nLegal entity - Leasing","Registration Tax\nFlanders\nLegal entity - No leasing ","Registration Tax\nFlanders\nCompany - Leasing","Registration Tax\nFlanders\nCompany - No leasing","Registration Tax\nFlanders\nNatural person with VAT","Registration Tax\nFlanders\nNatural person without VAT","CO2 Solidarity Contribution\nMonthly","CO2 Solidarity Contribution\nYearly","Benefit In Kind\nYearly","Benefit In Kind\nMonthly","Disallowed expenses\nWith fuel card \nYearly","Disallowed expenses\nWith fuel card \nMonthly","Disallowed expenses\nWithout fuel card \nYearly","Disallowed expenses\nWithout fuel card \nMonthly","Circulation Tax\nBrussels\nLegal entity - Leasing ","Circulation Tax\nBrussels\nLegal entity - No leasing","Circulation Tax\nBrussels\nCompany - Leasing","Circulation Tax\nBrussels\n Company - No leasing","Circulation Tax\nBrussels\nNatural person with VAT","Circulation Tax\nBrussels\nNatural person without VAT","Circulation Tax\nWallonia\nLegal entity - Leasing","Circulation Tax\nWallonia\nLegal entity - No leasing","Circulation Tax\nWallonia\nCompany - Leasing","Circulation Tax\nWallonia\nCompany - No Leasing","Circulation Tax\nWallonia\nNatural person with VAT","Circulation Tax\nWallonia\nNatural person without VAT","Circulation Tax\nFlanders\nLegal entity - Leasing","Circulation Tax\nFlanders\nLegal entity - No leasing","Circulation Tax\nFlanders\nCompany - Leasing","Circulation Tax\nFlanders\nCompany - No leasing","Circulation Tax\nFlanders\nNatural person with VAT","Circulation Tax\nFlanders\nNatural person without VAT"]
[null,null,null,null,null,null,null,null,null,null,null,null,null,{"$f":"VLOOKUP(taxo_lite_data[[#This Row],[Vehicle Type]],vehicle_types[],2,FALSE)","v":{"$error":"#N/A"}},{"$f":"VLOOKUP(taxo_lite_data[[#This Row],[Engine Type]],engine_types[],2,FALSE)","v":{"$error":"#N/A"}},{"$f":"IF(ISBLANK(taxo_lite_data[[#This Row],[First Registration Date]]),\"\",TEXT(taxo_lite_data[[#This Row],[First Registration Date]],\"YYYY-MM-DD\"))","v":""},{"$f":"IF(ISBLANK(taxo_lite_data[[#This Row],[Execution Date]]),\"\",TEXT(taxo_lite_data[[#This Row],[Execution Date]],\"YYYY-MM-DD\"))","v":""},{"$f":"getTaxoLite(taxo_lite_data[[#This Row],[Vehicle Type Formatted]],taxo_lite_data[[#This Row],[Vehicle Price (Excl. VAT)]],taxo_lite_data[[#This Row],[Discount Amount (Excl. VAT)]],taxo_lite_data[[#This Row],[First Registration Date Formatted]],taxo_lite_data[[#This Row],[Engine Type Formatted]],taxo_lite_data[[#This Row],[Engine Capacity (CC)]],taxo_lite_data[[#This Row],[Max Net Power (kW)]],taxo_lite_data[[#This Row],[Fiscal HP]],taxo_lite_data[[#This Row],[Max Permissible Weight (kg)]],taxo_lite_data[[#This Row],[CO2 (g/km)]],taxo_lite_data[[#This Row],[Euronorm]],taxo_lite_data[[#This Row],[Execution Date Formatted]])","v":{"$error":"#VALUE!"}},null,28405]
[null,null,null,null,null,null,null,null,null,null,null,null,null,{"$f":"VLOOKUP(taxo_lite_data[[#This Row],[Vehicle Type]],vehicle_types[],2,FALSE)","v":{"$error":"#N/A"}},{"$f":"VLOOKUP(taxo_lite_data[[#This Row],[Engine Type]],engine_types[],2,FALSE)","v":{"$error":"#N/A"}},{"$f":"IF(ISBLANK(taxo_lite_data[[#This Row],[First Registration Date]]),\"\",TEXT(taxo_lite_data[[#This Row],[First Registration Date]],\"YYYY-MM-DD\"))","v":""},{"$f":"IF(ISBLANK(taxo_lite_data[[#This Row],[Execution Date]]),\"\",TEXT(taxo_lite_data[[#This Row],[Execution Date]],\"YYYY-MM-DD\"))","v":""},{"$f":"getTaxoLite(taxo_lite_data[[#This Row],[Vehicle Type Formatted]],taxo_lite_data[[#This Row],[Vehicle Price (Excl. VAT)]],taxo_lite_data[[#This Row],[Discount Amount (Excl. VAT)]],taxo_lite_data[[#This Row],[First Registration Date Formatted]],taxo_lite_data[[#This Row],[Engine Type Formatted]],taxo_lite_data[[#This Row],[Engine Capacity (CC)]],taxo_lite_data[[#This Row],[Max Net Power (kW)]],taxo_lite_data[[#This Row],[Fiscal HP]],taxo_lite_data[[#This Row],[Max Permissible Weight (kg)]],taxo_lite_data[[#This Row],[CO2 (g/km)]],taxo_lite_data[[#This Row],[Euronorm]],taxo_lite_data[[#This Row],[Execution Date Formatted]])","v":{"$error":"#VALUE!"}}]
[null,null,null,null,null,null,null,null,null,null,null,null,null,{"$f":"VLOOKUP(taxo_lite_data[[#This Row],[Vehicle Type]],vehicle_types[],2,FALSE)","v":{"$error":"#N/A"}},{"$f":"VLOOKUP(taxo_lite_data[[#This Row],[Engine Type]],engine_types[],2,FALSE)","v":{"$error":"#N/A"}},{"$f":"IF(ISBLANK(taxo_lite_data[[#This Row],[First Registration Date]]),\"\",TEXT(taxo_lite_data[[#This Row],[First Registration Date]],\"YYYY-MM-DD\"))","v":""},{"$f":"IF(ISBLANK(taxo_lite_data[[#This Row],[Execution Date]]),\"\",TEXT(taxo_lite_data[[#This Row],[Execution Date]],\"YYYY-MM-DD\"))","v":""},{"$f":"getTaxoLite(taxo_lite_data[[#This Row],[Vehicle Type Formatted]],taxo_lite_data[[#This Row],[Vehicle Price (Excl. VAT)]],taxo_lite_data[[#This Row],[Discount Amount (Excl. VAT)]],taxo_lite_data[[#This Row],[First Registration Date Formatted]],taxo_lite_data[[#This Row],[Engine Type Formatted]],taxo_lite_data[[#This Row],[Engine Capacity (CC)]],taxo_lite_data[[#This Row],[Max Net Power (kW)]],taxo_lite_data[[#This Row],[Fiscal HP]],taxo_lite_data[[#This Row],[Max Permissible Weight (kg)]],taxo_lite_data[[#This Row],[CO2 (g/km)]],taxo_lite_data[[#This Row],[Euronorm]],taxo_lite_data[[#This Row],[Execution Date Formatted]])","v":{"$error":"#VALUE!"}}]
[null,null,null,null,null,null,null,null,null,null,null,null,null,{"$f":"VLOOKUP(taxo_lite_data[[#This Row],[Vehicle Type]],vehicle_types[],2,FALSE)","v":{"$error":"#N/A"}},{"$f":"VLOOKUP(taxo_lite_data[[#This Row],[Engine Type]],engine_types[],2,FALSE)","v":{"$error":"#N/A"}},{"$f":"IF(ISBLANK(taxo_lite_data[[#This Row],[First Registration Date]]),\"\",TEXT(taxo_lite_data[[#This Row],[First Registration Date]],\"YYYY-MM-DD\"))","v":""},{"$f":"IF(ISBLANK(taxo_lite_data[[#This Row],[Execution Date]]),\"\",TEXT(taxo_lite_data[[#This Row],[Execution Date]],\"YYYY-MM-DD\"))","v":""},{"$f":"getTaxoLite(taxo_lite_data[[#This Row],[Vehicle Type Formatted]],taxo_lite_data[[#This Row],[Vehicle Price (Excl. VAT)]],taxo_lite_data[[#This Row],[Discount Amount (Excl. VAT)]],taxo_lite_data[[#This Row],[First Registration Date Formatted]],taxo_lite_data[[#This Row],[Engine Type Formatted]],taxo_lite_data[[#This Row],[Engine Capacity (CC)]],taxo_lite_data[[#This Row],[Max Net Power (kW)]],taxo_lite_data[[#This Row],[Fiscal HP]],taxo_lite_data[[#This Row],[Max Permissible Weight (kg)]],taxo_lite_data[[#This Row],[CO2 (g/km)]],taxo_lite_data[[#This Row],[Euronorm]],taxo_lite_data[[#This Row],[Execution Date Formatted]])","v":{"$error":"#VALUE!"}}]
[null,null,null,null,null,null,null,null,null,null,null,null,null,{"$f":"VLOOKUP(taxo_lite_data[[#This Row],[Vehicle Type]],vehicle_types[],2,FALSE)","v":{"$error":"#N/A"}},{"$f":"VLOOKUP(taxo_lite_data[[#This Row],[Engine Type]],engine_types[],2,FALSE)","v":{"$error":"#N/A"}},{"$f":"IF(ISBLANK(taxo_lite_data[[#This Row],[First Registration Date]]),\"\",TEXT(taxo_lite_data[[#This Row],[First Registration Date]],\"YYYY-MM-DD\"))","v":""},{"$f":"IF(ISBLANK(taxo_lite_data[[#This Row],[Execution Date]]),\"\",TEXT(taxo_lite_data[[#This Row],[Execution Date]],\"YYYY-MM-DD\"))","v":""},{"$f":"getTaxoLite(taxo_lite_data[[#This Row],[Vehicle Type Formatted]],taxo_lite_data[[#This Row],[Vehicle Price (Excl. VAT)]],taxo_lite_data[[#This Row],[Discount Amount (Excl. VAT)]],taxo_lite_data[[#This Row],[First Registration Date Formatted]],taxo_lite_data[[#This Row],[Engine Type Formatted]],taxo_lite_data[[#This Row],[Engine Capacity (CC)]],taxo_lite_data[[#This Row],[Max Net Power (kW)]],taxo_lite_data[[#This Row],[Fiscal HP]],taxo_lite_data[[#This Row],[Max Permissible Weight (kg)]],taxo_lite_data[[#This Row],[CO2 (g/km)]],taxo_lite_data[[#This Row],[Euronorm]],taxo_lite_data[[#This Row],[Execution Date Formatted]])","v":{"$error":"#VALUE!"}}]

{"sheet":"Token - User guide","index":2,"n_rows":32,"n_cols":12,"rows_kept":32,"cut":false,"hidden":false,"merged":[[15,2,15,8],[18,2,18,8],[20,0,31,0],[1,2,1,8],[4,0,15,0],[4,2,4,8],[5,2,5,8],[6,2,6,8],[7,2,7,8],[8,2,8,8],[9,2,9,8],[10,2,10,8],[11,2,11,8],[12,2,12,8],[13,2,13,8],[14,2,14,8]]}
[null,"Please insert the API token provided by FEBIAC. You don’t have one? Then contact us using the form on TAXO website."]
[null,"TOKEN"]
[]
[]
["INPUT FIELDS","vehicle_type","Specifies if the vehicle is a car or LCV."]
[null,"vehicle_price","The price of the vehicle including options and excluding VAT."]
[null,"discount_amount","The discount amount applicable to the price of the vehicle and excluding VAT."]
[null,"first_registration_date","Date of the first registration of the vehicle in Belgium or in Europe (in case of vehicles registred for first time in other european country). Order date is defaulted to first registration date."]
[null,"engine_type","Specifies the powertrain(s) and fuel type(s) used by the vehicle."]
[null,"engine_capacity","The capacity of the internal combustion engine expressed in cubic centmeters (not in liters). For BEV and FCEV, this value must be set to zero."]
[null,"fiscal_hp","The equivalent horsepower for fiscal purposes."]
[null,"max_net_power","The maximum power of the vehicle and expressed in kilowatts (kW)."]
[null,"max_permissible_weight","The weight of the vehicle plus the maximum payload that can be carried by the vehicle."]
[null,"co2","If the first registration date ≥ 2022-01-01, then use the WLTP value, if it is before 2022-01-01 then use the NEDC value. For BEV and FECV this value must be set to zero."]
[null,"euronorm","The European vehicle emission standard for the exhaust emissions of the vehicle."]
[null,"execution_date","If specifed, the calcualtions will be done based on the tax rules applicable to this date. If not specified, current tax rules will be applied. This date cannot be set before 2022-01-01."]
[]
[]
[null,null,"TAX COMPONENTS"]
[null,null,"CIRCULATION TAX","REGISTRATION TAX","BENEFIT IN KIND","VAT DEDUCTIBILITY","CO2 CONTRIBUTION","RELATED EXPENSES DECUTBILITY","ALL TAX COMPONENTS"]
["INPUT FIELDS","vehicle_type",null,null,null,null,null,null,null,null,null,"Mandatory parameter"]
[null,"vehicle_price",null,null,null,null,null,null,null,null,null,"Mandatory in specific cases"]
[null,"discount_amount",null,null,null,null,null,null,null,null,null,"Optional parameter"]
[null,"first_registration_date"]
[null,"engine_type"]
[null,"engine_capacity","if fiscal_hp is not provided","if fiscal_hp is not provided",null,null,null,"only for CNG and if fiscal_hp not provided","if fiscal_hp is not provided"]
[null,"fiscal_hp","if engine_capacity is not provided","if engine_capacity is not provided",null,null,null,"only for CNG and if engine_capacity not provided","if engine_capacity is not provided"]
[null,"max_net_power"]
[null,"max_permissible_weight","only for LCV"]
[null,"co2"]
[null,"euronorm"]
[null,"execution_date"]

{"sheet":"Configuration","index":3,"n_rows":58,"n_cols":12,"rows_kept":58,"cut":false,"hidden":true,"merged":[]}
[]
[null,"Endpoint","https://api.dataservices.febiac.be/taxo-lite/all-tax-components"]
[]
[null,"display","code",null,"display","code",null,"display","code",null,"api_name","display_name"]
[null,"Car","car",null,"Full Electric","bev",null,0,0,null,"tax_deductibility.tax_deductibility_yearly","Tax Deductiblity\nYearly"]
[null,"LCV","lcv",null,"CNG","cng",null,1,1,null,"vat_deductibility.mixed_usage","VAT Deductibility\nMixed Usage"]
[null,null,null,null,"Diesel","diesel",null,2,2,null,"vat_deductibility.professional_usage_only","VAT Deductibility\nProfessional usage only"]
[null,null,null,null,"FCEV","fcev",null,3,3,null,"vat_deductibility.special_purpose","VAT Deductibility\nSpecial purpose"]
[null,null,null,null,"Gasoline","gasoline",null,4,4,null,"registration_tax.brussels.moral_person_legal_entity_leasing.registration_tax","Registration Tax\nBrussels \nLegal entity - Leasing "]
[null,null,null,null,"Gasoline + CNG","gasoline_cng",null,5,5,null,"registration_tax.brussels.moral_person_legal_entity_no_leasing.registration_tax","Registration Tax\nBrussels \nLegal entity - No leasing "]
[null,null,null,null,"Gasoline + LNG","gasoline_lng",null,6,6,null,"registration_tax.brussels.moral_person_company_leasing.registration_tax","Registration Tax\nBrussels\nCompany - leasing "]
[null,null,null,null,"HEV - CNG","hev_cng",null,null,null,null,"registration_tax.brussels.moral_person_company_no_leasing.registration_tax","Registration Tax\nBrussels\nCompany - No leasing"]
[null,null,null,null,"HEV - Diesel","hev_diesel",null,null,null,null,"registration_tax.brussels.natural_person_with_vat.registration_tax","Registration Tax\nBrussels\nNatural person with VAT "]
[null,null,null,null,"HEV - Gasoline","hev_gasoline",null,null,null,null,"registration_tax.brussels.natural_person_without_vat.registration_tax","Registration Tax\nBrussels\nNatural person without VAT "]
[null,null,null,null,"HEV - LNG","hev_lng",null,null,null,null,"registration_tax.wallonia.moral_person_legal_entity_leasing.registration_tax","Registration Tax\nWallonia\nLegal entity - Leasing"]
[null,null,null,null,"HEV - LPG","hev_lpg",null,null,null,null,"registration_tax.wallonia.moral_person_legal_entity_no_leasing.registration_tax","Registration Tax\nWallonia\n Legal entity - No leasing"]
[null,null,null,null,"LNG","lng",null,null,null,null,"registration_tax.wallonia.moral_person_company_leasing.registration_tax","Registration Tax\nWallonia\n Company - Leasing"]
[null,null,null,null,"LPG","lpg",null,null,null,null,"registration_tax.wallonia.moral_person_company_no_leasing.registration_tax","Registration Tax\nWallonia\nCompany - No leasing"]
[null,null,null,null,"PHEV - CNG","phev_cng",null,null,null,null,"registration_tax.wallonia.natural_person_with_vat.registration_tax","Registration Tax\nWallonia\nNatural person with VAT"]
[null,null,null,null,"PHEV - Diesel","phev_diesel",null,null,null,null,"registration_tax.wallonia.natural_person_without_vat.registration_tax","Registration Tax\nWallonia\nNatural person without VAT"]
[null,null,null,null,"PHEV - Gasoline","phev_gasoline",null,null,null,null,"registration_tax.flanders.moral_person_legal_entity_leasing.registration_tax","Registration Tax\nFlanders\nLegal entity - Leasing"]
[null,null,null,null,"PHEV - LNG","phev_lng",null,null,null,null,"registration_tax.flanders.moral_person_legal_entity_no_leasing.registration_tax","Registration Tax\nFlanders\nLegal entity - No leasing "]
[null,null,null,null,"PHEV - LPG","phev_lpg",null,null,null,null,"registration_tax.flanders.moral_person_company_leasing.registration_tax","Registration Tax\nFlanders\nCompany - Leasing"]
[null,null,null,null,null,null,null,null,null,null,"registration_tax.flanders.moral_person_company_no_leasing.registration_tax","Registration Tax\nFlanders\nCompany - No leasing"]
[null,null,null,null,null,null,null,null,null,null,"registration_tax.flanders.natural_person_with_vat.registration_tax","Registration Tax\nFlanders\nNatural person with VAT"]
[null,null,null,null,null,null,null,null,null,null,"registration_tax.flanders.natural_person_without_vat.registration_tax","Registration Tax\nFlanders\nNatural person without VAT"]
[null,null,null,null,null,null,null,null,null,null,"co2_solidarity_tax.solidarity_tax_monthly","CO2 Solidarity Contribution\nMonthly"]
[null,null,null,null,null,null,null,null,null,null,"co2_solidarity_tax.solidarity_tax_yearly","CO2 Solidarity Contribution\nYearly"]
[null,null,null,null,null,null,null,null,null,null,"benefit_in_kind.benefit_in_kind_yearly","Benefit In Kind\nYearly"]
[null,null,null,null,null,null,null,null,null,null,"benefit_in_kind.benefit_in_kind_monthly","Benefit In Kind\nMonthly"]
[null,null,null,null,null,null,null,null,null,null,"benefit_in_kind.disallowed_expenses_with_fuel_card_yearly","Disallowed expenses\nWith fuel card \nYearly"]
[null,null,null,null,null,null,null,null,null,null,"benefit_in_kind.disallowed_expenses_with_fuel_card_monthly","Disallowed expenses\nWith fuel card \nMonthly"]
[null,null,null,null,null,null,null,null,null,null,"benefit_in_kind.disallowed_expenses_without_fuel_card_yearly","Disallowed expenses\nWithout fuel card \nYearly"]
[null,null,null,null,null,null,null,null,null,null,"benefit_in_kind.disallowed_expenses_without_fuel_card_monthly","Disallowed expenses\nWithout fuel card \nMonthly"]
[null,null,null,null,null,null,null,null,null,null,"circulation_tax.brussels.moral_person_legal_entity_leasing.circulation_tax","Circulation Tax\nBrussels\nLegal entity - Leasing "]
[null,null,null,null,null,null,null,null,null,null,"circulation_tax.brussels.moral_person_legal_entity_no_leasing.circulation_tax","Circulation Tax\nBrussels\nLegal entity - No leasing"]
[null,null,null,null,null,null,null,null,null,null,"circulation_tax.brussels.moral_person_company_leasing.circulation_tax","Circulation Tax\nBrussels\nCompany - Leasing"]
[null,null,null,null,null,null,null,null,null,null,"circulation_tax.brussels.moral_person_company_no_leasing.circulation_tax","Circulation Tax\nBrussels\n Company - No leasing"]
[null,null,null,null,null,null,null,null,null,null,"circulation_tax.brussels.natural_person_with_vat.circulation_tax","Circulation Tax\nBrussels\nNatural person with VAT"]
[null,null,null,null,null,null,null,null,null,null,"circulation_tax.brussels.natural_person_without_vat.circulation_tax","Circulation Tax\nBrussels\nNatural person without VAT"]
[null,null,null,null,null,null,null,null,null,null,"circulation_tax.wallonia.moral_person_legal_entity_leasing.circulation_tax","Circulation Tax\nWallonia\nLegal entity - Leasing"]
[null,null,null,null,null,null,null,null,null,null,"circulation_tax.wallonia.moral_person_legal_entity_no_leasing.circulation_tax","Circulation Tax\nWallonia\nLegal entity - No leasing"]
[null,null,null,null,null,null,null,null,null,null,"circulation_tax.wallonia.moral_person_company_leasing.circulation_tax","Circulation Tax\nWallonia\nCompany - Leasing"]
[null,null,null,null,null,null,null,null,null,null,"circulation_tax.wallonia.moral_person_company_no_leasing.circulation_tax","Circulation Tax\nWallonia\nCompany - No Leasing"]
[null,null,null,null,null,null,null,null,null,null,"circulation_tax.wallonia.natural_person_with_vat.circulation_tax","Circulation Tax\nWallonia\nNatural person with VAT"]
[null,null,null,null,null,null,null,null,null,null,"circulation_tax.wallonia.natural_person_without_vat.circulation_tax","Circulation Tax\nWallonia\nNatural person without VAT"]
[null,null,null,null,null,null,null,null,null,null,"circulation_tax.flanders.moral_person_legal_entity_leasing.circulation_tax","Circulation Tax\nFlanders\nLegal entity - Leasing"]
[null,null,null,null,null,null,null,null,null,null,"circulation_tax.flanders.moral_person_legal_entity_no_leasing.circulation_tax","Circulation Tax\nFlanders\nLegal entity - No leasing"]
[null,null,null,null,null,null,null,null,null,null,"circulation_tax.flanders.moral_person_company_leasing.circulation_tax","Circulation Tax\nFlanders\nCompany - Leasing"]
[null,null,null,null,null,null,null,null,null,null,"circulation_tax.flanders.moral_person_company_no_leasing.circulation_tax","Circulation Tax\nFlanders\nCompany - No leasing"]
[null,null,null,null,null,null,null,null,null,null,"circulation_tax.flanders.natural_person_with_vat.circulation_tax","Circulation Tax\nFlanders\nNatural person with VAT"]
[null,null,null,null,null,null,null,null,null,null,"circulation_tax.flanders.natural_person_without_vat.circulation_tax","Circulation Tax\nFlanders\nNatural person without VAT"]
[null,null,null,null,null,null,null,null,null,null,"registration_tax.wallonia.moral_person_legal_entity_leasing.eco_malus","Ecomalus\nWallonia\nLegal entity - Leasing"]
[null,null,null,null,null,null,null,null,null,null,"registration_tax.wallonia.moral_person_legal_entity_no_leasing.eco_malus","Ecomalus\nWallonia\nLegal entity - No leasing"]
[null,null,null,null,null,null,null,null,null,null,"registration_tax.wallonia.moral_person_company_leasing.eco_malus","Ecomalus\nWallonia\nCompany - Leasing"]
[null,null,null,null,null,null,null,null,null,null,"registration_tax.wallonia.moral_person_company_no_leasing.eco_malus","Ecomalus\nWallonia\nCompany - No leasing"]
[null,null,null,null,null,null,null,null,null,null,"registration_tax.wallonia.natural_person_with_vat.eco_malus","Ecomalus\nWallonia\nNatural person with VAT"]
[null,null,null,null,null,null,null,null,null,null,"registration_tax.wallonia.natural_person_without_vat.eco_malus","Ecomalus\nWallonia\nNatural person without VAT"]